[Event "Schack-SM 2023: Mastarklassen-elit"]
[Site "Helsingborg Arena, Mellersta Stenbocksgatan 14, Helsingborg, Sweden"]
[Date "2023.07.02"]
[Round "2.2"]
[White "Torngren, Gustav"]
[Black "Wiedenkeller, Michael"]
[Result "1/2-1/2"]
[TimeControl "90 minutes for 40 moves + 30 minutes for the rest of games + 30 seconds per move from move one."]
[WhiteTitle "FM"]
[BlackTitle "IM"]
[WhiteElo "2297"]
[BlackElo "2445"]

1. d4 {[%clk 01:30:41]} {[%emt 00:00:17]} d5 {[%clk 01:30:38]} {[%emt
00:00:23]} 2. g3 {[%clk 01:29:12]} {[%emt 00:02:01]} Nf6 {[%clk 01:27:32]}
{[%emt 00:03:35]} 3. Bg2 {[%clk 01:29:05]} {[%emt 00:00:37]} c6 {[%clk
01:20:51]} {[%emt 00:07:12]} 4. Nf3 {[%clk 01:29:15]} {[%emt 00:00:19]} Bf5
{[%clk 01:20:31]} {[%emt 00:00:51]} 5. O-O {[%clk 01:29:02]} {[%emt 00:00:41]}
e6 {[%clk 01:19:17]} {[%emt 00:01:46]} 6. c4 {[%clk 01:28:43]} {[%emt
00:00:48]} Nbd7 {[%clk 01:17:05]} {[%emt 00:02:42]} 7. Nc3 {[%clk 01:28:31]}
{[%emt 00:00:42]} h6 {[%clk 01:10:10]} {[%emt 00:07:25]} 8. Nd2 {[%clk
01:19:51]} {[%emt 00:09:09]} Be7 {[%clk 01:07:33]} {[%emt 00:03:08]} 9. e4
{[%clk 01:20:02]} {[%emt 00:00:20]} dxe4 {[%clk 01:05:49]} {[%emt 00:02:14]} 10.
Ndxe4 {[%clk 01:20:20]} {[%emt 00:00:11]} Nxe4 {[%clk 01:02:09]} {[%emt
00:04:10]} 11. Nxe4 {[%clk 01:20:42]} {[%emt 00:00:08]} O-O {[%clk 00:58:38]}
{[%emt 00:04:01]} 12. Be3 {[%clk 01:19:46]} {[%emt 00:01:26]} Nf6 {[%clk
00:53:49]} {[%emt 00:05:20]} 13. Nc3 {[%clk 01:19:09]} {[%emt 00:01:06]} Qc7
{[%clk 00:47:57]} {[%emt 00:06:23]} 14. Qe2 {[%clk 01:15:33]} {[%emt 00:04:05]}
Rad8 {[%clk 00:40:54]} {[%emt 00:07:33]} 15. Rfe1 {[%clk 01:11:08]} {[%emt
00:04:55]} Rfe8 {[%clk 00:37:01]} {[%emt 00:04:24]} 16. a3 {[%clk 01:08:51]}
{[%emt 00:02:46]} a6 {[%clk 00:17:22]} {[%emt 00:20:09]} 17. Rac1 {[%clk
01:05:22]} {[%emt 00:03:59]} e5 {[%clk 00:16:35]} {[%emt 00:01:17]} 18. dxe5
{[%clk 01:02:15]} {[%emt 00:03:37]} Qxe5 {[%clk 00:16:57]} {[%emt 00:00:08]} 19.
Bb6 {[%clk 01:01:51]} {[%emt 00:00:54]} Qxe2 {[%clk 00:17:10]} {[%emt
00:00:17]} 20. Rxe2 {[%clk 01:02:19]} {[%emt 00:00:02]} Rc8 {[%clk 00:16:37]}
{[%emt 00:01:04]} 21. Rce1 {[%clk 00:58:17]} {[%emt 00:04:30]} Kf8 {[%clk
00:14:44]} {[%emt 00:02:24]} 22. f4 {[%clk 00:53:31]} {[%emt 00:05:16]} Nd7
{[%clk 00:13:11]} {[%emt 00:02:03]} 23. Bd4 {[%clk 00:53:15]} {[%emt 00:00:47]}
Bf6 {[%clk 00:11:49]} {[%emt 00:01:52]} 24. Rxe8+ {[%clk 00:51:23]} {[%emt
00:02:22]} Rxe8 {[%clk 00:12:17]} 25. Rxe8+ {[%clk 00:51:41]} {[%emt 00:00:12]}
Kxe8 {[%clk 00:12:46]} {[%emt 00:00:02]} 26. Bxf6 {[%clk 00:51:59]} {[%emt
00:00:12]} Nxf6 {[%clk 00:13:10]} {[%emt 00:00:06]} 27. h3 {[%clk 00:51:06]}
{[%emt 00:01:22]} Ke7 {[%clk 00:04:09]} {[%emt 00:09:32]} 28. Kf2 {[%clk
00:47:20]} {[%emt 00:04:15]} Kd6 {[%clk 00:03:50]} {[%emt 00:00:50]} 29. b4
{[%clk 00:45:57]} {[%emt 00:01:52]} b6 {[%clk 00:02:20]} {[%emt 00:02:01]} 30.
Na4 {[%clk 00:44:33]} {[%emt 00:01:52]} Nd7 {[%clk 00:02:43]} {[%emt 00:00:09]}
31. g4 {[%clk 00:36:24]} {[%emt 00:08:38]} Bc2 {[%clk 00:02:32]} {[%emt
00:00:41]} 32. Nc3 {[%clk 00:34:41]} {[%emt 00:02:13]} c5 {[%clk 00:02:22]}
{[%emt 00:00:41]} 33. Ke3 {[%clk 00:33:31]} {[%emt 00:01:39]} f6 {[%clk
00:01:28]} {[%emt 00:01:25]} 34. Bb7 {[%clk 00:31:01]} {[%emt 00:02:59]} cxb4
{[%clk 00:01:24]} {[%emt 00:00:34]} 35. axb4 {[%clk 00:31:15]} {[%emt
00:00:16]} Nb8 {[%clk 00:00:42]} {[%emt 00:01:13]} 36. Nd5 {[%clk 00:25:31]}
{[%emt 00:06:13]} a5 {[%clk 00:00:47]} {[%emt 00:00:26]} 37. c5+ {[%clk
00:23:19]} {[%emt 00:02:42]} bxc5 {[%clk 00:01:15]} {[%emt 00:00:02]} 38. bxa5
{[%clk 00:23:29]} {[%emt 00:00:18]} Bb3 {[%clk 00:00:36]} {[%emt 00:01:10]} 39.
Nc3 {[%clk 00:22:39]} {[%emt 00:01:19]} Kc7 {[%clk 00:00:38]} {[%emt 00:00:29]}
40. Ne4 {[%clk 00:13:40]} {[%emt 00:09:28]} Nd7 {[%clk 00:00:40]} {[%emt
00:00:29]} 41. Ba8 {[%clk 00:04:38]} {[%emt 00:09:32]} Be6 {[%clk 00:25:43]}
{[%emt 00:05:27]} 42. Nc3 {[%clk 00:31:07]} {[%emt 00:04:01]} Bc4 {[%clk
00:23:32]} {[%emt 00:02:40]} 43. h4 {[%clk 00:24:14]} {[%emt 00:07:23]} g5
{[%clk 00:22:24]} {[%emt 00:01:38]} 44. hxg5 {[%clk 00:23:09]} {[%emt
00:01:36]} hxg5 {[%clk 00:21:57]} {[%emt 00:00:56]} 45. fxg5 {[%clk 00:22:42]}
{[%emt 00:00:57]} fxg5 {[%clk 00:22:15]} {[%emt 00:00:13]} 46. Ne4 {[%clk
00:23:04]} {[%emt 00:00:07]} Be6 {[%clk 00:20:19]} {[%emt 00:02:27]} 47. Nxg5
{[%clk 00:23:03]} {[%emt 00:00:31]} Bxg4 {[%clk 00:20:25]} {[%emt 00:00:24]}
1/2-1/2

[Event "Schack-SM 2023: Junior-SM"]
[Site "Helsingborg Arena, Mellersta Stenbocksgatan 14, Helsingborg, Sweden"]
[Date "2023.07.02"]
[Round "2.5"]
[White "Lindholm, Gustav"]
[Black "Seo, Jung Hyun"]
[Result "0-1"]
[TimeControl "90 minutes for 40 moves + 30 minutes for the rest of the game + 30 seconds per move from move one."]
[WhiteElo "2155"]
[BlackElo "2124"]

1. d4 {[%clk 01:30:52]} {[%emt 00:00:02]} e6 {[%clk 01:30:53]} {[%emt
00:00:11]} 2. c4 {[%clk 01:31:17]} {[%emt 00:00:06]} d5 {[%clk 01:31:17]}
{[%emt 00:00:06]} 3. Nf3 {[%clk 01:31:39]} {[%emt 00:00:08]} a6 {[%clk
01:31:44]} {[%emt 00:00:03]} 4. cxd5 {[%clk 01:31:56]} {[%emt 00:00:13]} exd5
{[%clk 01:32:10]} {[%emt 00:00:04]} 5. Nc3 {[%clk 01:32:19]} {[%emt 00:00:06]}
c6 {[%clk 01:32:37]} {[%emt 00:00:04]} 6. Qc2 {[%clk 01:31:35]} {[%emt
00:01:14]} Bd6 {[%clk 01:32:26]} {[%emt 00:00:41]} 7. Bg5 {[%clk 01:30:29]}
{[%emt 00:01:35]} Ne7 {[%clk 01:32:49]} {[%emt 00:00:07]} 8. e3 {[%clk
01:29:35]} {[%emt 00:01:24]} f6 {[%clk 01:32:11]} {[%emt 00:01:09]} 9. Bh4
{[%clk 01:26:40]} {[%emt 00:03:25]} Bf5 {[%clk 01:32:31]} {[%emt 00:00:10]} 10.
Bd3 {[%clk 01:25:59]} {[%emt 00:01:10]} Bxd3 {[%clk 01:31:14]} {[%emt
00:01:48]} 11. Qxd3 {[%clk 01:26:21]} {[%emt 00:00:07]} Qc8 {[%clk 01:24:31]}
{[%emt 00:07:14]} 12. Bg3 {[%clk 01:21:46]} {[%emt 00:05:05]} Qe6 {[%clk
01:13:36]} {[%emt 00:11:26]} 13. Bxd6 {[%clk 01:13:15]} {[%emt 00:09:01]} Qxd6
{[%clk 01:14:02]} {[%emt 00:00:03]} 14. O-O {[%clk 01:13:36]} {[%emt 00:00:09]}
f5 {[%clk 01:06:58]} {[%emt 00:07:35]} 15. b4 {[%clk 01:04:08]} {[%emt
00:09:58]} Nd7 {[%clk 01:03:07]} {[%emt 00:04:21]} 16. Rab1 {[%clk 01:01:24]}
{[%emt 00:03:14]} b5 {[%clk 00:57:21]} {[%emt 00:06:16]} 17. Nd2 {[%clk
00:55:39]} {[%emt 00:06:15]} a5 {[%clk 00:56:25]} {[%emt 00:01:26]} 18. a3
{[%clk 00:49:44]} {[%emt 00:06:26]} O-O {[%clk 00:56:01]} {[%emt 00:00:51]} 19.
f3 {[%clk 00:47:38]} {[%emt 00:02:37]} Nb6 {[%clk 00:49:57]} {[%emt 00:06:35]}
20. Rfc1 {[%clk 00:38:50]} {[%emt 00:09:18]} Rfd8 {[%clk 00:43:19]} {[%emt
00:07:07]} 21. Ne2 {[%clk 00:17:55]} {[%emt 00:21:26]} Nc4 {[%clk 00:43:13]}
{[%emt 00:00:36]} 22. Rc3 {[%clk 00:15:08]} {[%emt 00:03:17]} axb4 {[%clk
00:42:02]} {[%emt 00:01:41]} 23. axb4 {[%clk 00:11:30]} {[%emt 00:04:09]} Ra2
{[%clk 00:42:12]} {[%emt 00:00:19]} 24. Nf1 {[%clk 00:07:46]} {[%emt 00:04:14]}
Re8 {[%clk 00:30:11]} {[%emt 00:12:32]} 25. Nc1 {[%clk 00:06:20]} {[%emt
00:01:56]} Ra4 {[%clk 00:29:34]} {[%emt 00:01:07]} 26. Rcb3 {[%clk 00:06:40]}
{[%emt 00:00:10]} Qe6 {[%clk 00:28:24]} {[%emt 00:01:40]} 27. Ne2 {[%clk
00:05:41]} {[%emt 00:01:27]} Ng6 {[%clk 00:26:22]} {[%emt 00:02:34]} 28. Nc3
{[%clk 00:04:53]} {[%emt 00:01:17]} Ra7 {[%clk 00:25:30]} {[%emt 00:01:22]} 29.
Re1 {[%clk 00:05:18]} {[%emt 00:00:05]} Qf6 {[%clk 00:23:32]} {[%emt 00:02:26]}
30. Nd2 {[%clk 00:04:13]} {[%emt 00:01:33]} Nf4 {[%clk 00:23:15]} {[%emt
00:00:51]} 31. Qc2 {[%clk 00:03:56]} {[%emt 00:00:47]} Nxe3 {[%clk 00:23:30]}
{[%emt 00:00:16]} 32. Nce4 {[%clk 00:02:46]} {[%emt 00:01:40]} fxe4 {[%clk
00:22:05]} {[%emt 00:01:55]} 33. Rbxe3 {[%clk 00:02:55]} {[%emt 00:00:22]} Rae7
{[%clk 00:18:35]} {[%emt 00:04:00]} 34. fxe4 {[%clk 00:01:07]} {[%emt
00:02:17]} Qxd4 {[%clk 00:17:58]} {[%emt 00:01:08]} 35. Nb3 {[%clk 00:00:43]}
{[%emt 00:00:53]} Qc4 {[%clk 00:14:20]} {[%emt 00:04:09]} 36. Qxc4 {[%clk
00:00:32]} {[%emt 00:00:41]} bxc4 {[%clk 00:14:44]} {[%emt 00:00:06]} 37. Nd4
{[%clk 00:00:47]} {[%emt 00:00:15]} Rxe4 {[%clk 00:14:55]} {[%emt 00:00:19]} 38.
Rxe4 {[%clk 00:01:07]} {[%emt 00:00:09]} Rxe4 {[%clk 00:15:25]} 39. Rxe4 {[%clk
00:01:24]} {[%emt 00:00:14]} dxe4 {[%clk 00:15:54]} 40. Nxc6 {[%clk 00:01:35]}
{[%emt 00:00:19]} c3 {[%clk 00:11:39]} {[%emt 00:04:45]} 41. Nd4 {[%clk
00:01:53]} {[%emt 00:00:11]} Kf7 {[%clk 00:11:20]} {[%emt 00:00:50]} 42. b5
{[%clk 00:28:11]} {[%emt 00:04:12]} Nd5 {[%clk 00:41:28]} {[%emt 00:00:21]} 43.
Kf2 {[%clk 00:28:01]} {[%emt 00:00:39]} Kf6 {[%clk 00:41:28]} {[%emt 00:00:29]}
44. Ke2 {[%clk 00:26:23]} {[%emt 00:02:09]} Ke5 {[%clk 00:41:12]} {[%emt
00:00:45]} 45. Nb3 {[%clk 00:25:30]} {[%emt 00:01:25]} Kd6 {[%clk 00:37:20]}
{[%emt 00:04:22]} 46. g4 {[%clk 00:25:40]} {[%emt 00:00:20]} Ke5 {[%clk
00:34:43]} {[%emt 00:03:08]} 47. h3 {[%clk 00:25:58]} {[%emt 00:00:12]} Kf4
{[%clk 00:35:00]} {[%emt 00:00:13]} 48. Nc5 {[%clk 00:25:54]} {[%emt 00:00:32]}
e3 {[%clk 00:32:28]} {[%emt 00:03:03]} 49. Ne6+ {[%clk 00:23:06]} {[%emt
00:03:18]} Ke4 {[%clk 00:31:34]} {[%emt 00:01:22]} 50. Ng5+ {[%clk 00:23:30]}
{[%emt 00:00:09]} Kd4 {[%clk 00:31:32]} {[%emt 00:00:30]} 51. Ne6+ {[%clk
00:23:57]} {[%emt 00:00:04]} Kc4 {[%clk 00:31:22]} {[%emt 00:00:40]} 52. b6
{[%clk 00:24:21]} {[%emt 00:00:07]} c2 {[%clk 00:31:33]} {[%emt 00:00:19]} 53.
b7 {[%clk 00:24:45]} {[%emt 00:00:05]} c1=Q {[%clk 00:31:59]} {[%emt 00:00:04]}
54. b8=Q {[%clk 00:25:07]} {[%emt 00:00:08]} Qd2+ {[%clk 00:32:28]} {[%emt
00:00:02]} 55. Kf3 {[%clk 00:25:27]} {[%emt 00:00:10]} Qf2+ {[%clk 00:32:56]}
{[%emt 00:00:02]} 56. Ke4 {[%clk 00:25:46]} {[%emt 00:00:10]} Qg2 {[%clk
00:33:25]} {[%emt 00:00:02]} 57. Kf5 {[%clk 00:25:50]} {[%emt 00:00:25]} Qf3+
{[%clk 00:33:28]} {[%emt 00:00:26]} 58. Kg5 {[%clk 00:25:55]} {[%emt 00:00:27]}
Qf6+ {[%clk 00:33:54]} {[%emt 00:00:02]} 59. Kh5 {[%clk 00:26:17]} {[%emt
00:00:10]} Qh6+ {[%clk 00:34:11]} {[%emt 00:00:09]} 0-1

[Event "Schack-SM 2023: Mastarklassen"]
[Site "Helsingborg Arena, Mellersta Stenbocksgatan 14, Helsingborg, Sweden"]
[Date "2023.07.02"]
[Round "2.4"]
[White "Jogstad, Daniel"]
[Black "Cederstam, Carl"]
[Result "1/2-1/2"]
[TimeControl "90 minutes for 40 moves + 30 minutes for the rest of games + 30 seconds per move from move one."]
[WhiteTitle "CM"]
[BlackTitle "FM"]
[WhiteElo "2131"]
[BlackElo "2196"]

1. d4 {[%clk 01:30:55]} {[%emt 00:00:03]} e6 {[%clk 01:30:14]} {[%emt
00:00:47]} 2. c4 {[%clk 01:30:24]} {[%emt 00:01:01]} d5 {[%clk 01:30:35]}
{[%emt 00:00:08]} 3. Nf3 {[%clk 01:30:46]} {[%emt 00:00:08]} Nf6 {[%clk
01:30:47]} {[%emt 00:00:18]} 4. Nc3 {[%clk 01:31:08]} {[%emt 00:00:08]} h6
{[%clk 01:30:45]} {[%emt 00:00:33]} 5. e3 {[%clk 01:30:11]} {[%emt 00:01:27]}
c5 {[%clk 01:28:59]} {[%emt 00:02:17]} 6. cxd5 {[%clk 01:23:42]} {[%emt
00:06:59]} exd5 {[%clk 01:27:07]} {[%emt 00:02:21]} 7. Bd3 {[%clk 01:23:48]}
{[%emt 00:00:24]} Nc6 {[%clk 01:25:45]} {[%emt 00:01:53]} 8. h3 {[%clk
01:23:38]} {[%emt 00:00:41]} a6 {[%clk 01:23:27]} {[%emt 00:02:48]} 9. O-O
{[%clk 01:23:05]} {[%emt 00:01:02]} Be6 {[%clk 01:22:37]} {[%emt 00:01:20]} 10.
Ne5 {[%clk 01:18:20]} {[%emt 00:05:15]} Rc8 {[%clk 01:19:34]} {[%emt 00:03:32]}
11. f4 {[%clk 01:07:38]} {[%emt 00:11:13]} Bd6 {[%clk 01:16:16]} {[%emt
00:03:47]} 12. Kh1 {[%clk 00:34:55]} {[%emt 00:33:14]} Rc7 {[%clk 00:32:38]}
{[%emt 00:44:08]} 13. Nxc6 {[%clk 00:30:55]} {[%emt 00:04:30]} Rxc6 {[%clk
00:27:44]} {[%emt 00:05:23]} 14. f5 {[%clk 00:23:42]} {[%emt 00:07:44]} Bc8
{[%clk 00:27:30]} {[%emt 00:00:44]} 15. e4 {[%clk 00:24:02]} {[%emt 00:00:10]}
cxd4 {[%clk 00:26:40]} {[%emt 00:01:20]} 16. Nxd5 {[%clk 00:23:04]} {[%emt
00:01:28]} Be5 {[%clk 00:19:20]} {[%emt 00:07:50]} 17. Qf3 {[%clk 00:14:22]}
{[%emt 00:09:13]} Qd6 {[%clk 00:18:05]} {[%emt 00:01:45]} 18. Bd2 {[%clk
00:14:26]} {[%emt 00:00:26]} Nxd5 {[%clk 00:13:36]} {[%emt 00:04:58]} 19. exd5
{[%clk 00:14:50]} {[%emt 00:00:06]} Rb6 {[%clk 00:13:44]} {[%emt 00:00:21]} 20.
Rfe1 {[%clk 00:08:44]} {[%emt 00:06:36]} O-O {[%clk 00:12:47]} {[%emt
00:01:27]} 21. f6 {[%clk 00:08:27]} {[%emt 00:00:48]} Bxf6 {[%clk 00:10:55]}
{[%emt 00:02:22]} 22. Bf4 {[%clk 00:08:15]} {[%emt 00:00:41]} Qd7 {[%clk
00:09:29]} {[%emt 00:01:57]} 23. Qe4 {[%clk 00:05:05]} {[%emt 00:03:40]} g6
{[%clk 00:09:51]} {[%emt 00:00:08]} 24. Bxh6 {[%clk 00:05:28]} {[%emt
00:00:07]} Rd8 {[%clk 00:10:03]} {[%emt 00:00:18]} 25. Bf4 {[%clk 00:04:08]}
{[%emt 00:01:51]} Kg7 {[%clk 00:09:44]} {[%emt 00:00:49]} 26. Rac1 {[%clk
00:04:11]} {[%emt 00:00:27]} Rxb2 {[%clk 00:06:32]} {[%emt 00:03:42]} 27. Be5
{[%clk 00:01:47]} {[%emt 00:02:54]} Qf5 {[%clk 00:04:46]} {[%emt 00:02:14]} 28.
Bxf6+ {[%clk 00:01:11]} {[%emt 00:01:07]} Qxf6 {[%clk 00:05:06]} {[%emt
00:00:10]} 29. Rf1 {[%clk 00:00:58]} {[%emt 00:00:42]} Bf5 {[%clk 00:03:26]}
{[%emt 00:02:10]} 30. Qf3 {[%clk 00:01:01]} {[%emt 00:00:27]} Qg5 {[%clk
00:02:17]} {[%emt 00:01:39]} 31. Rc7 {[%clk 00:00:53]} {[%emt 00:00:38]} Re8
{[%clk 00:01:23]} {[%emt 00:01:23]} 32. d6 {[%clk 00:00:41]} {[%emt 00:00:43]}
Re3 {[%clk 00:01:27]} {[%emt 00:00:26]} 33. Qd5 {[%clk 00:00:53]} {[%emt
00:00:14]} Kh6 {[%clk 00:01:03]} {[%emt 00:00:59]} 34. Rxf7 {[%clk 00:00:35]}
{[%emt 00:00:48]} Rxd3 {[%clk 00:00:38]} {[%emt 00:00:55]} 35. Rh7+ {[%clk
00:00:54]} {[%emt 00:00:12]} Kxh7 {[%clk 00:00:58]} {[%emt 00:00:09]} 36. Qf7+
{[%clk 00:00:59]} {[%emt 00:00:25]} Kh6 {[%clk 00:01:08]} {[%emt 00:00:20]} 37.
Qf8+ {[%clk 00:01:13]} {[%emt 00:00:16]} Kh7 {[%clk 00:01:12]} {[%emt
00:00:26]} 38. Qf7+ {[%clk 00:01:39]} {[%emt 00:00:04]} Kh6 {[%clk 00:01:39]}
{[%emt 00:00:04]} 39. Qf8+ {[%clk 00:02:01]} {[%emt 00:00:07]} Kh5 {[%clk
00:01:27]} {[%emt 00:00:43]} 40. Qh8+ {[%clk 00:01:00]} {[%emt 00:01:29]} Qh6
{[%clk 00:01:43]} {[%emt 00:00:15]} 41. g4+ {[%clk 00:17:07]} {[%emt 00:14:24]}
Bxg4 {[%clk 00:31:43]} {[%emt 00:00:29]} 42. hxg4+ {[%clk 00:17:30]} {[%emt
00:00:06]} Kg5+ {[%clk 00:30:26]} {[%emt 00:01:47]} 43. Qxh6+ {[%clk 00:17:53]}
{[%emt 00:00:08]} Kxh6 {[%clk 00:30:53]} {[%emt 00:00:02]} 44. d7 {[%clk
00:18:18]} {[%emt 00:00:06]} Rdd2 {[%clk 00:25:30]} {[%emt 00:05:53]} 45. Re1
{[%clk 00:18:23]} {[%emt 00:00:25]} Rh2+ {[%clk 00:11:58]} {[%emt 00:14:02]} 46.
Kg1 {[%clk 00:18:30]} {[%emt 00:00:23]} Rbg2+ {[%clk 00:12:14]} {[%emt
00:00:13]} 47. Kf1 {[%clk 00:18:50]} {[%emt 00:00:10]} Rf2+ {[%clk 00:12:36]}
{[%emt 00:00:08]} 48. Kg1 {[%clk 00:19:10]} {[%emt 00:00:10]} Rhg2+ {[%clk
00:13:00]} {[%emt 00:00:06]} 49. Kh1 {[%clk 00:19:31]} {[%emt 00:00:11]} Rh2+
{[%clk 00:07:01]} {[%emt 00:06:29]} 50. Kg1 {[%clk 00:19:54]} {[%emt 00:00:06]}
Rfg2+ {[%clk 00:07:28]} {[%emt 00:00:03]} 51. Kf1 {[%clk 00:20:08]} {[%emt
00:00:16]} Rxa2 {[%clk 00:07:35]} {[%emt 00:00:23]} 52. Kg1 {[%clk 00:16:01]}
{[%emt 00:04:37]} Rag2+ {[%clk 00:00:39]} {[%emt 00:07:26]} 53. Kf1 {[%clk
00:16:23]} {[%emt 00:00:08]} Rf2+ {[%clk 00:00:54]} {[%emt 00:00:15]} 54. Kg1
{[%clk 00:16:48]} {[%emt 00:00:05]} Rhg2+ {[%clk 00:00:37]} {[%emt 00:00:47]}
55. Kh1 {[%clk 00:17:10]} {[%emt 00:00:07]} Rh2+ {[%clk 00:00:34]} {[%emt
00:00:33]} 56. Kg1 {[%clk 00:17:32]} {[%emt 00:00:09]} Rfg2+ {[%clk 00:00:58]}
{[%emt 00:00:05]} 57. Kf1 {[%clk 00:17:27]} {[%emt 00:00:35]} Rc2 {[%clk
00:00:50]} {[%emt 00:00:38]} 58. Kg1 {[%clk 00:16:20]} {[%emt 00:01:37]} Rcg2+
{[%clk 00:01:18]} {[%emt 00:00:02]} 59. Kf1 {[%clk 00:15:42]} {[%emt 00:01:08]}
Rb2 {[%clk 00:01:44]} {[%emt 00:00:04]} 60. Kg1 {[%clk 00:15:10]} {[%emt
00:01:03]} Rhg2+ {[%clk 00:02:13]} {[%emt 00:00:01]} 61. Kh1 {[%clk 00:14:44]}
{[%emt 00:00:56]} Rh2+ {[%clk 00:00:42]} {[%emt 00:02:00]} 62. Kg1 {[%clk
00:15:07]} {[%emt 00:00:07]} Rhg2+ {[%clk 00:00:36]} {[%emt 00:00:36]} 63. Kh1
{[%clk 00:13:15]} {[%emt 00:02:22]} Rh2+ {[%clk 00:00:37]} {[%emt 00:00:30]}
1/2-1/2

[Event "Schack-SM 2023: Veteran-SM 65+"]
[Site "Helsingborg Arena, Mellersta Stenbocksgatan 14, Helsingborg, Sweden"]
[Date "2023.07.02"]
[Round "2.6"]
[White "Haggvik, Kjell"]
[Black "Hedin, Gunnar"]
[Result "1/2-1/2"]
[TimeControl "90 minutes for 40 moves + 30 minutes for the rest of games + 30 seconds per move from move one."]
[WhiteElo "1683"]
[BlackElo "2093"]

1. c4 {[%clk 01:30:55]} {[%emt 00:00:03]} f5 {[%clk 01:30:46]} {[%emt
00:00:15]} 2. d4 {[%clk 01:31:11]} {[%emt 00:00:14]} Nf6 {[%clk 01:31:04]}
{[%emt 00:00:12]} 3. Nc3 {[%clk 01:31:25]} {[%emt 00:00:16]} e6 {[%clk
01:30:30]} {[%emt 00:01:04]} 4. g3 {[%clk 01:31:28]} {[%emt 00:00:26]} Bb4
{[%clk 01:29:48]} {[%emt 00:01:12]} 5. Bg2 {[%clk 01:31:16]} {[%emt 00:00:41]}
O-O {[%clk 01:28:41]} {[%emt 00:01:38]} 6. Qc2 {[%clk 01:31:09]} {[%emt
00:00:37]} d6 {[%clk 01:27:03]} {[%emt 00:02:09]} 7. Nf3 {[%clk 01:30:58]}
{[%emt 00:00:41]} Qe7 {[%clk 01:27:11]} {[%emt 00:00:22]} 8. O-O {[%clk
01:30:33]} {[%emt 00:00:54]} Bxc3 {[%clk 01:27:09]} {[%emt 00:00:34]} 9. Qxc3
{[%clk 01:29:00]} {[%emt 00:02:02]} Ne4 {[%clk 01:27:09]} {[%emt 00:00:29]} 10.
Qc2 {[%clk 01:28:33]} {[%emt 00:00:58]} e5 {[%clk 01:24:22]} {[%emt 00:03:17]}
11. b3 {[%clk 01:22:23]} {[%emt 00:06:40]} Nc6 {[%clk 01:22:35]} {[%emt
00:02:17]} 12. Bb2 {[%clk 01:21:52]} {[%emt 00:01:00]} a5 {[%clk 01:09:23]}
{[%emt 00:13:43]} 13. a3 {[%clk 01:19:51]} {[%emt 00:02:31]} Bd7 {[%clk
00:56:40]} {[%emt 00:13:14]} 14. Rad1 {[%clk 01:11:07]} {[%emt 00:09:13]} Rae8
{[%clk 00:53:20]} {[%emt 00:03:50]} 15. dxe5 {[%clk 01:08:56]} {[%emt
00:02:40]} dxe5 {[%clk 00:49:58]} {[%emt 00:03:53]} 16. Nxe5 {[%clk 01:08:20]}
{[%emt 00:01:06]} Nxe5 {[%clk 00:50:20]} {[%emt 00:00:08]} 17. Bxe5 {[%clk
01:08:43]} {[%emt 00:00:06]} Qxe5 {[%clk 00:45:23]} {[%emt 00:05:28]} 18. Rxd7
{[%clk 01:09:06]} {[%emt 00:00:06]} Nf6 {[%clk 00:41:59]} {[%emt 00:03:55]} 19.
Rd2 {[%clk 01:08:16]} {[%emt 00:01:19]} c6 {[%clk 00:41:34]} {[%emt 00:00:56]}
20. e3 {[%clk 01:03:22]} {[%emt 00:05:24]} Re7 {[%clk 00:38:10]} {[%emt
00:03:55]} 21. Rfd1 {[%clk 01:01:57]} {[%emt 00:01:54]} h5 {[%clk 00:29:16]}
{[%emt 00:09:25]} 22. c5 {[%clk 00:56:26]} {[%emt 00:06:00]} g6 {[%clk
00:28:04]} {[%emt 00:01:42]} 23. Qc4+ {[%clk 00:52:10]} {[%emt 00:04:46]} Kg7
{[%clk 00:28:03]} {[%emt 00:00:31]} 24. Qd4 {[%clk 00:49:09]} {[%emt 00:03:30]}
Qe6 {[%clk 00:23:49]} {[%emt 00:04:45]} 25. Qc3 {[%clk 00:48:50]} {[%emt
00:00:49]} Kh6 {[%clk 00:20:27]} {[%emt 00:03:52]} 26. Rd6 {[%clk 00:37:30]}
{[%emt 00:11:49]} Qf7 {[%clk 00:19:42]} {[%emt 00:01:16]} 27. Rd8 {[%clk
00:33:02]} {[%emt 00:04:57]} Ree8 {[%clk 00:18:20]} {[%emt 00:01:53]} 28. Rxe8
{[%clk 00:31:38]} {[%emt 00:01:53]} Rxe8 {[%clk 00:18:24]} {[%emt 00:00:27]} 29.
Rd3 {[%clk 00:28:21]} {[%emt 00:03:46]} Ng4 {[%clk 00:16:14]} {[%emt 00:02:41]}
30. Qxa5 {[%clk 00:27:34]} {[%emt 00:01:17]} Ne5 {[%clk 00:16:06]} {[%emt
00:00:38]} 31. Rd8 {[%clk 00:27:31]} {[%emt 00:00:33]} Qxb3 {[%clk 00:09:21]}
{[%emt 00:07:15]} 32. Rxe8 {[%clk 00:22:35]} {[%emt 00:05:25]} Qd1+ {[%clk
00:08:23]} {[%emt 00:01:29]} 33. Bf1 {[%clk 00:22:55]} {[%emt 00:00:09]} Nf3+
{[%clk 00:08:41]} {[%emt 00:00:12]} 34. Kg2 {[%clk 00:23:16]} {[%emt 00:00:09]}
Nh4+ {[%clk 00:08:27]} {[%emt 00:00:43]} 35. gxh4 {[%clk 00:21:41]} {[%emt
00:01:34]} 1/2-1/2